fUSD/lending_fUSD_20240912
["ID","MTS","AMOUNT","RATE_DAILY","PERIOD"]
[337822553,1726133469416,-351.73795235,0.00014794,2]
[337822554,1726133469427,-500.0,0.00014794,2]
[337822555,1726133469436,-2071.89,0.00014794,2]
[337822556,1726133469447,-1840.79,0.00014794,2]
[337822557,1726133469457,-151.0,0.00014794,2]
[337822558,1726133469466,-1839.39,0.00014794,2]
[337822559,1726133469476,-500.0,0.00014794,2]
[337822560,1726133469487,-1283.73362152,0.00014794,2]
[337822561,1726133469749,-788.15637848,0.00014794,2]
[337822562,1726133469759,-1840.79,0.00014794,2]
[337822563,1726133469770,-1391.30855869,0.00014794,2]
[337822564,1726133494668,500.0,8.972e-05,2]
[337822565,1726133496240,500.0,0.00011712,2]
[337822567,1726133563481,500.0,0.00010068,2]
[337822568,1726133563517,500.0,0.00011164,2]
[337822569,1726133563677,500.0,0.00011164,2]
[337822570,1726133724526,1148.98,0.00011921,2]
[337822574,1726134067231,500.0,0.00010068,2]
[337822575,1726134102375,-1285.0,0.00012708,2]
[337822576,1726134102396,-500.0,0.00012808,2]
[337822577,1726134102417,-500.0,0.00012808,2]
[337822578,1726134139253,432.48536868,0.00011164,2]
[337822579,1726134175169,500.0,0.00010068,2]
[337822580,1726134202681,-500.0,0.00012808,2]
[337822581,1726134202702,-300.0,0.00013564,2]
[337822582,1726134202723,-23900.0,0.00013565,2]
[337822583,1726134202755,-169.62,0.00013601,2]
[337822584,1726134202779,-168.47,0.00013666,2]
[337822585,1726134202800,-1000.0,0.0001368,2]
[337822586,1726134202823,-168.47,0.00013734,2]
[337822587,1726134202843,-200.0,0.00013751,2]
[337822588,1726134202865,-187.35,0.00013753,2]
[337822589,1726134202886,-250.0,0.00013803,2]
[337822590,1726134202906,-159.15,0.00013811,2]
[337822591,1726134202927,-709.87,0.00013811,2]
[337822592,1726134202953,-150.0,0.00013839,2]
[337822593,1726134202974,-137.07,0.00013839,2]
[337822594,1726134214004,1091.53,0.00011701,2]
[337822600,1726134278410,500.0,0.00011164,2]
[337822601,1726134300753,5600.0,0.00013,30]
[337822602,1726134313646,1050.0,0.00011,2]
[337822614,1726134410251,360.65,0.00010959,2]
[337822616,1726134428781,-150.0,0.0001329,2]
[337822617,1726134428805,-150.0,0.0001329,2]
[337822618,1726134428827,-150.0,0.0001329,2]
[337822619,1726134428850,-150.68554574,0.0001329,2]
[337822620,1726134428878,-150.00000001,0.0001329,2]
[337822621,1726134428901,-250.0,0.00013619,2]
[337822622,1726134428924,-250.0,0.00013765,2]
[337822623,1726134428948,-159.15,0.00013789,2]
[337822624,1726134428971,-514.64,0.00013821,2]
[337822625,1726134428993,-150.0,0.00013844,2]
[337822626,1726134429016,-250.0,0.0001385,2]
[337822627,1726134429040,-500.0,0.00013904,2]
[337822628,1726134429062,-500.0,0.00013904,2]
[337822629,1726134429084,-500.0,0.00013904,2]
[337822630,1726134429108,-300.0,0.00013964,2]
[337822631,1726134429139,-1091.53,0.00013965,2]
[337822632,1726134429166,-529.145,0.00014452,2]
[337822633,1726134429189,-168.728,0.00014452,2]
[337822634,1726134429211,-4301.68,0.000146,5]
[337822635,1726134429233,-1064.68,0.000146,2]
[337822636,1726134429256,-6085.47938646,0.0001464,7]
[337822637,1726134429279,-150.0,0.00014683,2]
[337822638,1726134429302,-372.441,0.00014684,2]
[337822639,1726134429325,-26271.2217,0.00014684,2]
[337822640,1726134429347,-260.7841,0.00014684,2]
[337822641,1726134429369,-762.0,0.00014684,2]
[337822642,1726134429393,-3124.069,0.00014694,2]
[337822643,1726134429416,-199.2131,0.00014694,2]
[337822644,1726134429439,-1436.7407,0.00014694,2]
[337822645,1726134429474,-57.81246779,0.00014694,2]
[337822650,1726134476480,500.0,0.00011164,2]
[337822651,1726134476984,500.0,0.00011164,2]
[337822652,1726134515465,500.0,0.00011164,2]
[337822667,1726134631475,-171.92,0.00013756,2]
[337822668,1726134631485,-20116.82849384,0.00013756,2]
[337822669,1726134631506,-3783.17150616,0.00013756,2]
[337822670,1726134631517,-160.85,0.00013769,2]
[337822671,1726134631526,-200.0,0.00013853,2]
[337822672,1726134631536,-200.0,0.00013867,2]
[337822673,1726134631546,-500.0,0.00013904,2]
[337822674,1726134631555,-500.0,0.00013904,2]
[337822675,1726134631565,-532.47,0.000145,2]
[337822676,1726134631575,-184.44822387,0.00014584,2]
[337822677,1726134631585,-1987.025,0.00014684,2]
[337822678,1726134631595,-351.12127476,0.00014691,2]
[337822679,1726134631604,-151.82596384,0.00014693,2]
[337822680,1726134631614,-300.0,0.00014693,2]
[337822681,1726134631625,-150.99,0.00014693,2]
[337822682,1726134631635,-151.8259638,0.00014693,2]
[337822683,1726134631645,-151.8259638,0.00014693,2]
[337822684,1726134631655,-151.8259638,0.00014693,2]
[337822685,1726134631664,-151.8259638,0.00014693,2]
[337822686,1726134631674,-151.8259638,0.00014694,2]
[337822687,1726134631684,-151.8259638,0.00014694,2]
[337822688,1726134631694,-151.8259638,0.00014694,2]
[337822689,1726134631725,-151.8259638,0.00014694,2]
[337822690,1726134631736,-4794.63108097,0.00014694,2]
[337822691,1726134631759,-2647.55645124,0.00014694,2]
[337822692,1726134631771,-151.8259638,0.00014694,2]
[337822693,1726134631781,-328.34598578,0.00014694,2]
[337822694,1726134631790,-876.67,0.000147,2]
[337822695,1726134631800,-150.0,0.00014767,2]
[337822696,1726134631810,-580.8,0.00014774,3]
[337822697,1726134631820,-601.9497749,0.00014784,2]
[337822698,1726134631848,-255.97559429,0.00014784,2]
[337822700,1726134631863,-5567.81518432,0.00014784,2]
[337822707,1726134637383,-484.5265281,0.00014784,2]
[337822708,1726134637394,-3160.19150616,0.00014784,2]
[337822709,1726134637490,-824.34998284,0.00014784,2]
[337822710,1726134637502,-3413.58673412,0.00014784,2]
[337822711,1726134637518,-1858.427974,0.00014784,2]
[337822712,1726134637661,-38480.17393646,0.00014784,2]
[337822713,1726134637672,-302.5407008,0.00014784,2]
[337822714,1726134637686,-601.51186436,0.00014784,2]
[337822715,1726134637700,-814.44476835,0.00014784,2]
[337822716,1726134637711,-358.005,0.00014784,2]
[337822717,1726134637723,-3686.24347097,0.00014784,2]
[337822718,1726134637734,-9484.0,0.00014784,2]
[337822719,1726134637749,-1071.40643969,0.00014784,2]
[337822913,1726134639863,-582.22,0.00014784,2]
[337822915,1726134639875,-546.36906625,0.00014784,2]
[337822918,1726134639886,-638.93326362,0.00014784,2]
[337822975,1726134640417,-48905.13066086,0.00014784,2]
[337823220,1726134643656,-1077.3394925,0.00014488,2]
[337823222,1726134643666,-41009.66050715,0.00014784,2]
[337823226,1726134643708,-317.41637575,0.00014784,2]
[337823310,1726134645565,-270.47499053,0.00014784,2]
[337823311,1726134645735,-451.56586826,0.00014784,2]
[337823322,1726134664013,10204.83076951,0.00012,2]
[337823323,1726134664037,2236.76923049,0.00012,2]
[337823324,1726134672260,-1050.96033978,0.00014488,2]
[337823325,1726134672283,-8949.03966022,0.00014784,2]
[337823326,1726134676379,-10000.0,0.00014784,2]
[337823327,1726134719054,500.0,0.00011164,2]
[337823328,1726134720965,500.0,0.00011164,2]
[337823329,1726134746636,500.0,0.00011164,2]
[337823335,1726134884870,1021.02,0.00011876,2]
[337823344,1726135058429,-1500.8362045,0.000123,2]
[337823349,1726135387969,1006.78,0.00011865,2]
[337823366,1726135642772,162.11,0.00010959,2]
[337823400,1726135832289,-150.0,0.0001329,2]
[337823401,1726135832299,-136.18192272,0.00013503,2]
[337823402,1726135832321,-51.16807728,0.00013503,2]
[337823403,1726135832331,-158.77,0.00013526,2]
[337823404,1726135832340,-250.0,0.00013557,2]
[337823405,1726135832350,-150.0,0.00013579,2]
[337823406,1726135832359,-5331.52192272,0.00013601,2]
[337823418,1726135837787,-4720.62211124,0.00013601,2]
[337823419,1726135837798,-250.0,0.00013601,2]
[337823420,1726135837807,-200.0,0.00013601,2]
[337823421,1726135837817,-453.75,0.00013601,2]
[337823422,1726135837826,-23900.0,0.00013601,2]
[337823423,1726135837836,-1000.0,0.00013632,2]
[337823424,1726135837845,-250.0,0.0001364,2]
[337823425,1726135837855,-196.38,0.00013663,2]
[337823426,1726135837864,-446.05,0.00013663,2]
[337823427,1726135837873,-499.99,0.00013663,2]
[337823428,1726135837882,-150.99,0.00013685,2]
[337823430,1726135837892,-504.52,0.00013686,2]
[337823432,1726135837901,-169.6,0.00013857,2]
[337823434,1726135837910,-8924.4,0.00013857,2]
[337823436,1726135837920,-500.0,0.00013904,2]
[337823438,1726135837930,-500.0,0.00013904,2]
[337823440,1726135837939,-1575.61138198,0.00013965,2]
[337823442,1726135837949,-1006.78,0.00014129,2]
[337823444,1726135837958,-1308.35755756,0.00014488,2]
[337823445,1726135837967,-888.6,0.000145,2]
[337823448,1726135837977,-333.81179738,0.00014515,2]
[337823449,1726135837987,-150.0,0.00014614,2]
[337823451,1726135837996,-2523.22828,0.0001464,2]
[337823453,1726135838007,-546.763,0.00014658,2]
[337823455,1726135838016,-172.896,0.00014658,2]
[337823457,1726135838025,-150.0,0.00014662,2]
[337823459,1726135838035,-330.42163546,0.00014685,2]
[337823461,1726135838044,-330.42163546,0.00014686,2]
[337823463,1726135838054,-330.42163546,0.00014687,2]
[337823465,1726135838064,-330.42163546,0.00014688,2]
[337823467,1726135838074,-330.42163546,0.0001469,2]
[337823469,1726135838083,-330.42163546,0.00014691,2]
[337823471,1726135838092,-330.42163546,0.00014692,2]
[337823473,1726135838103,-4177.048,0.00014693,2]
[337823475,1726135838112,-330.42163546,0.00014693,2]
[337823477,1726135838125,-5052.178,0.00014694,2]
[337823479,1726135838135,-168.48175141,0.00014694,2]
[337823481,1726135838144,-330.42163546,0.00014694,2]
[337823483,1726135838154,-258.65070813,0.00014694,2]
[337823485,1726135838165,-1720.0,0.000147,2]
[337823487,1726135838175,-150.0,0.00014709,2]
[337823489,1726135838184,-150.0,0.00014767,2]
[337823491,1726135838195,-4103.39763232,0.00014774,2]
[337823493,1726135838205,-1199.91918686,0.00014783,5]
[337823495,1726135838215,-1199.91918685,0.00014783,5]
[337823497,1726135838224,-1172.39932352,0.00014784,2]
[337823499,1726135838235,-2930.9983088,0.00014784,2]
[337823501,1726135838244,-85820.1071267,0.00014784,2]
[337823503,1726135838254,-200.0,0.00014784,2]
[337823505,1726135838264,-150.0,0.00014791,2]
[337823507,1726135838274,-1432.33406214,0.00014793,2]
[337823509,1726135838284,-437.32827722,0.00014793,2]
[337823511,1726135838294,-26117.75786186,0.00014794,2]
[337823513,1726135838304,-151.0,0.00014794,2]
[337823515,1726135838314,-151.0,0.00014794,2]
[337823517,1726135838324,-151.0,0.00014794,2]
[337823519,1726135838334,-151.0,0.00014794,2]
[337823521,1726135838343,-151.0,0.00014794,2]
[337823523,1726135838353,-500.0,0.00014794,2]
[337823525,1726135838363,-500.0,0.00014794,2]
[337823527,1726135838372,-500.0,0.00014794,2]
[337823528,1726135838382,-500.0,0.00014794,2]
[337823530,1726135838391,-500.0,0.00014794,2]
[337823532,1726135838400,-500.0,0.00014794,2]
[337823534,1726135838410,-542.84528393,0.00014794,2]
[337823536,1726135838420,-500.0,0.00014794,2]
[337823538,1726135838430,-500.0,0.00014794,2]
[337823540,1726135838439,-500.0,0.00014794,2]
[337823542,1726135838449,-500.0,0.00014794,2]
[337823544,1726135838458,-500.0,0.00014794,2]
[337823546,1726135838468,-500.0,0.00014794,2]
[337823548,1726135838478,-500.0,0.00014794,2]
[337823550,1726135838487,-500.0,0.00014794,2]
[337823552,1726135838497,-285.95873638,0.00014794,2]
[337823554,1726135838507,-500.0,0.00014794,2]
[337823556,1726135838517,-500.0,0.00014794,2]
[337823558,1726135838526,-500.0,0.00014794,2]
[337823560,1726135838535,-500.0,0.00014794,2]
[337823562,1726135838545,-500.0,0.00014794,2]
[337823564,1726135838555,-500.0,0.00014794,2]
[337823566,1726135838565,-500.0,0.00014794,2]
[337823568,1726135838574,-500.0,0.00014794,2]
[337823569,1726135838584,-500.0,0.00014794,2]
[337823571,1726135838594,-295.32102365,0.00014794,2]
[337823573,1726135838603,-230.147061,0.00014794,2]
[337823575,1726135838613,-500.0,0.00014794,2]
[337823577,1726135838622,-500.0,0.00014794,2]
[337823579,1726135838632,-500.0,0.00014794,2]
[337823581,1726135838642,-500.0,0.00014794,2]
[337823583,1726135838651,-500.0,0.00014794,2]
[337823585,1726135838661,-500.0,0.00014794,2]
[337823587,1726135838670,-500.0,0.00014794,2]
[337823589,1726135838680,-159.901162,0.00014794,2]
[337823591,1726135838690,-151.0,0.00014794,2]
[337823593,1726135838699,-151.0,0.00014794,2]
[337823595,1726135838708,-151.0,0.00014794,2]
[337823597,1726135838717,-500.0,0.00014794,2]
[337823599,1726135838727,-500.0,0.00014794,2]
[337823601,1726135838736,-500.0,0.00014794,2]
[337823603,1726135838745,-500.0,0.00014794,2]
[337823605,1726135838754,-500.0,0.00014794,2]
[337823607,1726135838763,-500.0,0.00014794,2]
[337823609,1726135838772,-500.0,0.00014794,2]
[337823611,1726135838783,-500.0,0.00014794,2]
[337823613,1726135838792,-500.0,0.00014794,2]
[337823615,1726135838802,-500.0,0.00014794,2]
[337823617,1726135838811,-500.0,0.00014794,2]
[337823619,1726135838821,-500.0,0.00014794,2]
[337823621,1726135838832,-500.0,0.00014794,2]
[337823623,1726135838844,-500.0,0.00014794,2]
[337823625,1726135838855,-500.0,0.00014794,2]
[337823627,1726135838864,-296.10587085,0.00014794,2]
[337823629,1726135838874,-500.0,0.00014794,2]
[337823631,1726135838884,-500.0,0.00014794,2]
[337823633,1726135838893,-500.0,0.00014794,2]
[337823635,1726135838903,-500.0,0.00014794,2]
[337823637,1726135838913,-500.0,0.00014794,2]
[337823639,1726135838923,-500.0,0.00014794,2]
[337823641,1726135838932,-500.0,0.00014794,2]
[337823643,1726135838943,-500.0,0.00014794,2]
[337823645,1726135838952,-423.94283161,0.00014794,2]
[337823648,1726135838962,-151.0,0.00014794,2]
[337823650,1726135838972,-151.0,0.00014794,2]
[337823652,1726135838983,-151.0,0.00014794,2]
[337823654,1726135838992,-151.0,0.00014794,2]
[337823656,1726135839002,-500.0,0.00014794,2]
[337823657,1726135839011,-500.0,0.00014794,2]
[337823659,1726135839021,-151.0,0.00014794,2]
[337823661,1726135839030,-500.0,0.00014794,2]
[337823663,1726135839039,-151.0,0.00014794,2]
[337823665,1726135839048,-500.0,0.00014794,2]
[337823667,1726135839058,-151.0,0.00014794,2]
[337823669,1726135839067,-604.51745105,0.00014794,2]
[337823671,1726135839076,-151.0,0.00014794,2]
[337823673,1726135839086,-151.0,0.00014794,2]
[337823675,1726135839096,-181.08451,0.00014794,2]
[337823677,1726135839107,-151.0,0.00014794,2]
[337823679,1726135839120,-151.0,0.00014794,2]
[337823681,1726135839131,-151.0,0.00014794,2]
[337823683,1726135839141,-151.0,0.00014794,2]
[337823685,1726135839151,-151.0,0.00014794,2]
[337823687,1726135839160,-151.0,0.00014794,2]
[337823689,1726135839170,-500.0,0.00014794,2]
[337823691,1726135839179,-500.0,0.00014794,2]
[337823693,1726135839188,-500.0,0.00014794,2]
[337823695,1726135839201,-500.0,0.00014794,2]
[337823697,1726135839211,-500.0,0.00014794,2]
[337823699,1726135839220,-500.0,0.00014794,2]
[337823701,1726135839231,-500.0,0.00014794,2]
[337823703,1726135839241,-500.0,0.00014794,2]
[337823705,1726135839251,-500.0,0.00014794,2]
[337823707,1726135839261,-500.0,0.00014794,2]
[337823709,1726135839270,-500.0,0.00014794,2]
[337823711,1726135839282,-574.49288489,0.00014794,2]
[337823713,1726135839293,-500.0,0.00014794,2]
[337823715,1726135839303,-500.0,0.00014794,2]
[337823717,1726135839313,-500.0,0.00014794,2]
[337823720,1726135839324,-500.0,0.00014794,2]
[337823722,1726135839334,-500.0,0.00014794,2]
[337823724,1726135839344,-500.0,0.00014794,2]
[337823726,1726135839354,-500.0,0.00014794,2]
[337823728,1726135839364,-500.0,0.00014794,2]
[337823729,1726135839374,-500.0,0.00014794,2]
[337823731,1726135839383,-500.0,0.00014794,2]
[337823733,1726135839394,-500.0,0.00014794,2]
[337823735,1726135839403,-210.89798589,0.00014794,2]
[337823737,1726135839413,-500.0,0.00014794,2]
[337823739,1726135839424,-500.0,0.00014794,2]
[337823741,1726135839433,-500.0,0.00014794,2]
[337823742,1726135839443,-500.0,0.00014794,2]
[337823743,1726135839453,-336.64440482,0.00014794,2]
[337823744,1726135839463,-500.0,0.00014794,2]
[337823745,1726135839473,-500.0,0.00014794,2]
[337823746,1726135839483,-500.0,0.00014794,2]
[337823747,1726135839494,-500.0,0.00014794,2]
[337823748,1726135839504,-500.0,0.00014794,2]
[337823749,1726135839516,-500.0,0.00014794,2]
[337823750,1726135839526,-500.0,0.00014794,2]
[337823751,1726135839536,-500.0,0.00014794,2]
[337823752,1726135839545,-624.77826843,0.00014794,2]
[337823753,1726135839555,-500.0,0.00014794,2]
[337823754,1726135839563,-500.0,0.00014794,2]
[337823755,1726135839573,-500.0,0.00014794,2]
[337823756,1726135839583,-500.0,0.00014794,2]
[337823757,1726135839593,-500.0,0.00014794,2]
[337823758,1726135839603,-500.0,0.00014794,2]
[337823759,1726135839612,-500.0,0.00014794,2]
[337823760,1726135839622,-500.0,0.00014794,2]
[337823761,1726135839631,-500.0,0.00014794,2]
[337823762,1726135839641,-500.0,0.00014794,2]
[337823763,1726135839651,-500.0,0.00014794,2]
[337823788,1726135839917,-1000.0,0.00014794,2]
[337823790,1726135839927,-480.82176922,0.00014794,2]
[337823791,1726135839936,-500.0,0.00014794,2]
[337823793,1726135839946,-500.0,0.00014794,2]
[337823795,1726135839956,-500.0,0.00014794,2]
[337823797,1726135839965,-325.74730469,0.00014794,2]
[337823799,1726135839975,-500.0,0.00014794,2]
[337823801,1726135839984,-500.0,0.00014794,2]
[337823803,1726135839994,-500.0,0.00014794,2]
[337823805,1726135840003,-500.0,0.00014794,2]
[337823807,1726135840013,-500.0,0.00014794,2]
[337823809,1726135840022,-500.0,0.00014794,2]
[337823811,1726135840031,-500.0,0.00014794,2]
[337823813,1726135840041,-500.0,0.00014794,2]
[337823815,1726135840051,-500.0,0.00014794,2]
[337823817,1726135840061,-500.0,0.00014794,2]
[337823819,1726135840070,-500.0,0.00014794,2]
[337823821,1726135840079,-223.61725178,0.00014794,2]
[337823823,1726135840089,-500.0,0.00014794,2]
[337823825,1726135840098,-500.0,0.00014794,2]
[337823827,1726135840109,-500.0,0.00014794,2]
[337823829,1726135840120,-500.0,0.00014794,2]
[337823831,1726135840130,-500.0,0.00014794,2]
[337823833,1726135840141,-500.0,0.00014794,2]
[337823835,1726135840151,-500.0,0.00014794,2]
[337823837,1726135840160,-500.0,0.00014794,2]
[337823839,1726135840170,-500.0,0.00014794,2]
[337823841,1726135840179,-500.0,0.00014794,2]
[337823843,1726135840190,-500.0,0.00014794,2]
[337823845,1726135840199,-500.0,0.00014794,2]
[337823847,1726135840209,-500.0,0.00014794,2]
[337823849,1726135840219,-500.0,0.00014794,2]
[337823851,1726135840229,-500.0,0.00014794,2]
[337823852,1726135840238,-500.0,0.00014794,2]
[337823854,1726135840248,-500.0,0.00014794,2]
[337823856,1726135840257,-500.0,0.00014794,2]
[337823858,1726135840267,-500.0,0.00014794,2]
[337823860,1726135840277,-500.0,0.00014794,2]
[337823862,1726135840287,-500.0,0.00014794,2]
[337823864,1726135840297,-500.0,0.00014794,2]
[337823866,1726135840306,-500.0,0.00014794,2]
[337823868,1726135840315,-500.0,0.00014794,2]
[337823870,1726135840325,-500.0,0.00014794,2]
[337823872,1726135840335,-500.0,0.00014794,2]
[337823874,1726135840344,-500.0,0.00014794,2]
[337823876,1726135840354,-500.0,0.00014794,2]
[337823878,1726135840363,-500.0,0.00014794,2]
[337823879,1726135840373,-500.0,0.00014794,2]
[337823881,1726135840385,-500.0,0.00014794,2]
[337823883,1726135840395,-500.0,0.00014794,2]
[337823885,1726135840405,-500.0,0.00014794,2]
[337823887,1726135840416,-500.0,0.00014794,2]
[337823889,1726135840427,-500.0,0.00014794,2]
[337823890,1726135840437,-500.0,0.00014794,2]
[337823892,1726135840446,-500.0,0.00014794,2]
[337823894,1726135840456,-269.38138657,0.00014794,2]
[337823896,1726135840467,-595.12,0.00014794,2]
[337823898,1726135840477,-595.12,0.00014794,2]
[337823900,1726135840487,-595.12,0.00014794,2]
[337823902,1726135840497,-595.12,0.00014794,2]
[337823904,1726135840507,-595.12,0.00014794,2]
[337823906,1726135840517,-1805.43,0.00014794,2]
[337823908,1726135840527,-595.12,0.00014794,2]
[337823910,1726135840537,-1805.43,0.00014794,2]
[337823912,1726135840548,-595.12,0.00014794,2]
[337823914,1726135840558,-1805.43,0.00014794,2]
[337823916,1726135840569,-595.12,0.00014794,2]
[337823918,1726135840579,-1805.43,0.00014794,2]
[337823920,1726135840589,-595.12,0.00014794,2]
[337823922,1726135840599,-1805.43,0.00014794,2]
[337823924,1726135840610,-595.12,0.00014794,2]
[337823926,1726135840622,-1805.43,0.00014794,2]
[337823928,1726135840632,-1805.43,0.00014794,2]
[337823930,1726135840643,-595.12,0.00014794,2]
[337823932,1726135840653,-1805.43,0.00014794,2]
[337823934,1726135840662,-595.12,0.00014794,2]
[337823936,1726135840672,-1805.43,0.00014794,2]
[337823938,1726135840682,-595.12,0.00014794,2]
[337823940,1726135840692,-1805.43,0.00014794,2]
[337823941,1726135840702,-595.12,0.00014794,2]
[337823943,1726135840712,-595.12,0.00014794,2]
[337823945,1726135840721,-1805.43,0.00014794,2]
[337823947,1726135840731,-595.12,0.00014794,2]
[337823949,1726135840741,-1805.43,0.00014794,2]
[337823951,1726135840751,-595.12,0.00014794,2]
[337823953,1726135840761,-1805.43,0.00014794,2]
[337823955,1726135840771,-595.12,0.00014794,2]
[337823957,1726135840780,-1805.43,0.00014794,2]
[337823960,1726135840791,-595.12,0.00014794,2]
[337823962,1726135840802,-1805.43,0.00014794,2]
[337823964,1726135840811,-595.12,0.00014794,2]
[337823966,1726135840822,-1805.43,0.00014794,2]
[337823968,1726135840833,-595.12,0.00014794,2]
[337823970,1726135840842,-1805.43,0.00014794,2]
[337823972,1726135840852,-595.12,0.00014794,2]
[337823974,1726135840863,-1805.43,0.00014794,2]
[337823976,1726135840872,-595.12,0.00014794,2]
[337823978,1726135840882,-1805.43,0.00014794,2]
[337823980,1726135840891,-595.33304068,0.00014794,2]
[337823982,1726135840901,-1805.43,0.00014794,2]
[337823984,1726135840910,-1805.43,0.00014794,2]
[337823986,1726135840920,-1805.43,0.00014794,2]
[337823988,1726135840929,-1805.43,0.00014794,2]
[337823990,1726135840939,-1805.62274654,0.00014794,2]
[337823992,1726135840949,-500.0,0.00014794,2]
[337823994,1726135840958,-500.0,0.00014794,2]
[337823996,1726135840968,-500.0,0.00014794,2]
[337823998,1726135840978,-500.0,0.00014794,2]
[337824000,1726135840987,-1139.12,0.00014794,2]
[337824002,1726135840996,-500.0,0.00014794,2]
[337824004,1726135841005,-1139.12,0.00014794,2]
[337824005,1726135841015,-500.0,0.00014794,2]
[337824007,1726135841025,-1139.12,0.00014794,2]
[337824009,1726135841034,-1139.12,0.00014794,2]
[337824011,1726135841043,-500.0,0.00014794,2]
[337824013,1726135841053,-1139.12,0.00014794,2]
[337824015,1726135841062,-500.0,0.00014794,2]
[337824017,1726135841072,-1139.12,0.00014794,2]
[337824019,1726135841081,-500.0,0.00014794,2]
[337824021,1726135841091,-500.0,0.00014794,2]
[337824023,1726135841100,-1139.12,0.00014794,2]
[337824025,1726135841111,-500.0,0.00014794,2]
[337824027,1726135841122,-1139.12,0.00014794,2]
[337824029,1726135841131,-1139.12,0.00014794,2]
[337824030,1726135841143,-500.0,0.00014794,2]
[337824032,1726135841153,-500.0,0.00014794,2]
[337824034,1726135841162,-1139.12,0.00014794,2]
[337824035,1726135841172,-500.0,0.00014794,2]
[337824037,1726135841182,-1139.12,0.00014794,2]
[337824039,1726135841192,-500.0,0.00014794,2]
[337824041,1726135841201,-1139.12,0.00014794,2]
[337824043,1726135841211,-500.0,0.00014794,2]
[337824045,1726135841220,-1139.12,0.00014794,2]
[337824047,1726135841229,-500.0,0.00014794,2]
[337824049,1726135841239,-1139.12,0.00014794,2]
[337824051,1726135841248,-500.0,0.00014794,2]
[337824053,1726135841258,-1139.12,0.00014794,2]
[337824055,1726135841267,-500.0,0.00014794,2]
[337824057,1726135841276,-1139.12,0.00014794,2]
[337824059,1726135841286,-532.82776482,0.00014794,2]
[337824061,1726135841296,-1139.12,0.00014794,2]
[337824063,1726135841305,-1139.12,0.00014794,2]
[337824065,1726135841315,-1139.12,0.00014794,2]
[337824066,1726135841324,-1139.12,0.00014794,2]
[337824068,1726135841333,-500.0,0.00014794,2]
[337824070,1726135841343,-1139.12,0.00014794,2]
[337824072,1726135841352,-500.0,0.00014794,2]
[337824074,1726135841361,-1139.12,0.00014794,2]
[337824076,1726135841371,-500.0,0.00014794,2]
[337824078,1726135841380,-1139.12,0.00014794,2]
[337824080,1726135841390,-500.0,0.00014794,2]
[337824082,1726135841401,-500.0,0.00014794,2]
[337824084,1726135841410,-500.0,0.00014794,2]
[337824086,1726135841419,-1139.19789675,0.00014794,2]
[337824088,1726135841428,-500.0,0.00014794,2]
[337824090,1726135841437,-500.0,0.00014794,2]
[337824092,1726135841446,-500.0,0.00014794,2]
[337824093,1726135841455,-500.0,0.00014794,2]
[337824095,1726135841465,-500.0,0.00014794,2]
[337824097,1726135841474,-500.0,0.00014794,2]